[Event "Titled Tuesday Blitz July 6 2021"]
[White "Shevelev, Dmitry"]
[Black "Morris-Suzuki, Sophie"]
[WhiteFideId "24233463"]
[BlackFideId "30922615"]
[WhiteElo "2477"]
[BlackElo "2366"]
[Result "1/2-1/2"]
[Round "11"]
[TimeControl "180+1"]
[Date "2021.07.06"]
[WhiteClock "0:00:11"]
[BlackClock "0:00:09"]

1. d4 {[%clk 0:03:00]}  Nf6 {[%clk 0:02:57]} 2. Nf3 {[%clk 0:03:00]}  e6 {[%clk 0:02:58]} 3. Nc3 {[%clk 0:03:01]}  Bb4 {[%clk 0:02:57]} 4. Bg5 {[%clk 0:03:01]}  d5 {[%clk 0:02:52]} 5. Qd2 {[%clk 0:03:00]}  c5 {[%clk 0:02:52]} 6. a3 {[%clk 0:03:00]}  Bxc3 {[%clk 0:02:50]} 7. Qxc3 {[%clk 0:02:59]}  cxd4 {[%clk 0:02:47]} 8. Nxd4 {[%clk 0:02:57]}  O-O {[%clk 0:02:44]} 9. h4 {[%clk 0:02:52]}  h6 {[%clk 0:02:39]} 10. O-O-O {[%clk 0:02:30]}  e5 {[%clk 0:02:37]} 11. Bxf6 {[%clk 0:02:25]}  Qxf6 {[%clk 0:02:22]} 12. Nf3 {[%clk 0:02:25]}  d4 {[%clk 0:02:22]} 13. Qc5 {[%clk 0:02:17]}  Nc6 {[%clk 0:02:14]} 14. e3 {[%clk 0:02:07]}  b6 {[%clk 0:02:00]} 15. Qb5 {[%clk 0:02:02]}  Bg4 {[%clk 0:01:22]} 16. Be2 {[%clk 0:01:25]}  a6 {[%clk 0:01:22]} 17. Qd3 {[%clk 0:00:52]}  Bf5 {[%clk 0:01:03]} 18. e4 {[%clk 0:00:44]}  Bh7 {[%clk 0:01:01]} 19. g4 {[%clk 0:00:44]}  Qf4+ {[%clk 0:00:44]} 20. Kb1 {[%clk 0:00:42]}  Bxe4 {[%clk 0:00:42]} 21. Qd2 {[%clk 0:00:41]}  Qxd2 {[%clk 0:00:36]} 22. Rxd2 {[%clk 0:00:38]}  f5 {[%clk 0:00:35]} 23. g5 {[%clk 0:00:36]}  Bxf3 {[%clk 0:00:29]} 24. Bxf3 {[%clk 0:00:35]}  e4 {[%clk 0:00:30]} 25. Be2 {[%clk 0:00:32]}  f4 {[%clk 0:00:27]} 26. Bc4+ {[%clk 0:00:30]}  Kh8 {[%clk 0:00:27]} 27. Bd5 {[%clk 0:00:28]}  e3 {[%clk 0:00:24]} 28. Bxc6 {[%clk 0:00:12]}  exd2 {[%clk 0:00:24]} 29. Bxa8 {[%clk 0:00:12]}  Rxa8 {[%clk 0:00:25]} 30. Rd1 {[%clk 0:00:09]}  Re8 {[%clk 0:00:19]} 31. Rxd2 {[%clk 0:00:09]}  Re1+ {[%clk 0:00:15]} 32. Ka2 {[%clk 0:00:08]}  Rh1 {[%clk 0:00:16]} 33. gxh6 {[%clk 0:00:06]}  gxh6 {[%clk 0:00:15]} 34. Rxd4 {[%clk 0:00:06]}  Rxh4 {[%clk 0:00:15]} 35. Rd6 {[%clk 0:00:06]}  Rh2 {[%clk 0:00:13]} 36. Rxb6 {[%clk 0:00:06]}  Rxf2 {[%clk 0:00:12]} 37. Rxh6+ {[%clk 0:00:04]}  Kg7 {[%clk 0:00:12]} 38. Rh3 {[%clk 0:00:04]}  Rxc2 {[%clk 0:00:11]} 39. Kb3 {[%clk 0:00:04]}  Rf2 {[%clk 0:00:10]} 40. Rd3 {[%clk 0:00:04]}  f3 {[%clk 0:00:08]} 41. Kc3 {[%clk 0:00:05]}  Rf1 {[%clk 0:00:07]} 42. Kd4 {[%clk 0:00:03]}  f2 {[%clk 0:00:04]} 43. Ke3 {[%clk 0:00:04]}  Rb1 {[%clk 0:00:01]} 44. Kxf2 {[%clk 0:00:04]}  Rxb2+ {[%clk 0:00:02]} 45. Ke3 {[%clk 0:00:05]}  Ra2 {[%clk 0:00:02]} 46. Kd4 {[%clk 0:00:05]}  Rb2 {[%clk 0:00:02]} 47. Kc4 {[%clk 0:00:05]}  Rb6 {[%clk 0:00:02]} 48. Rb3 {[%clk 0:00:06]}  Rxb3 {[%clk 0:00:02]} 49. Kxb3 {[%clk 0:00:06]}  Kf7 {[%clk 0:00:03]} 50. Kb4 {[%clk 0:00:07]}  Ke7 {[%clk 0:00:04]} 51. Ka5 {[%clk 0:00:07]}  Kd7 {[%clk 0:00:05]} 52. Kxa6 {[%clk 0:00:08]}  Kc8 {[%clk 0:00:06]} 53. Ka7 {[%clk 0:00:08]}  Kc7 {[%clk 0:00:06]} 54. a4 {[%clk 0:00:09]}  Kc8 {[%clk 0:00:07]} 55. a5 {[%clk 0:00:10]}  Kc7 {[%clk 0:00:08]} 56. a6 {[%clk 0:00:10]}  Kc8 {[%clk 0:00:08]} 57. Ka8 {[%clk 0:00:09]}  Kc7 {[%clk 0:00:08]} 58. Ka7 {[%clk 0:00:09]}  Kc8 {[%clk 0:00:09]} 59. Kb6 {[%clk 0:00:10]}  Kb8 {[%clk 0:00:09]} 60. a7+ {[%clk 0:00:10]}  Ka8 {[%clk 0:00:09]} 61. Ka6 {[%clk 0:00:11]} 1/2-1/2


[Site "https://www.chess.com"]

[Event "Titled Tuesday Blitz July 6 2021"]
[White "Shuvalov, Evgenij"]
[Black "Karavaeva, Olga"]
[WhiteFideId "4187237"]
[BlackFideId "4124111"]
[WhiteElo "2163"]
[BlackElo "2105"]
[Result "1/2-1/2"]
[Round "11"]
[TimeControl "180+1"]
[Date "2021.07.06"]
[WhiteClock "0:00:10"]
[BlackClock "0:00:09"]

1. b4 {[%clk 0:02:54]}  e6 {[%clk 0:02:59]} 2. Bb2 {[%clk 0:02:54]}  Nf6 {[%clk 0:02:59]} 3. a3 {[%clk 0:02:54]}  d5 {[%clk 0:02:59]} 4. e3 {[%clk 0:02:54]}  a5 {[%clk 0:02:59]} 5. b5 {[%clk 0:02:53]}  a4 {[%clk 0:02:58]} 6. c4 {[%clk 0:02:51]}  c6 {[%clk 0:02:49]} 7. Nf3 {[%clk 0:02:46]}  cxb5 {[%clk 0:02:48]} 8. cxd5 {[%clk 0:02:45]}  Nxd5 {[%clk 0:02:47]} 9. Bxb5+ {[%clk 0:02:45]}  Bd7 {[%clk 0:02:48]} 10. Be2 {[%clk 0:02:37]}  Bd6 {[%clk 0:02:28]} 11. Bxg7 {[%clk 0:02:11]}  Rg8 {[%clk 0:02:27]} 12. Be5 {[%clk 0:02:09]}  Bxe5 {[%clk 0:02:22]} 13. Nxe5 {[%clk 0:02:10]}  Rxg2 {[%clk 0:02:16]} 14. Bf3 {[%clk 0:01:58]}  Rg7 {[%clk 0:02:15]} 15. Nc3 {[%clk 0:01:45]}  Nc6 {[%clk 0:02:03]} 16. Nxd7 {[%clk 0:01:38]}  Qxd7 {[%clk 0:02:02]} 17. Nxd5 {[%clk 0:01:37]}  exd5 {[%clk 0:02:03]} 18. d4 {[%clk 0:01:36]}  Na5 {[%clk 0:01:53]} 19. Rc1 {[%clk 0:01:29]}  Nb3 {[%clk 0:01:50]} 20. Rc3 {[%clk 0:01:22]}  Ra6 {[%clk 0:01:35]} 21. Ke2 {[%clk 0:01:17]}  Rc6 {[%clk 0:01:24]} 22. Qc2 {[%clk 0:01:14]}  Qe6 {[%clk 0:01:17]} 23. Kf1 {[%clk 0:01:01]}  Rg6 {[%clk 0:00:44]} 24. Rxc6 {[%clk 0:00:48]}  bxc6 {[%clk 0:00:45]} 25. Qc3 {[%clk 0:00:46]}  Rf6 {[%clk 0:00:39]} 26. Ke2 {[%clk 0:00:44]}  Qf5 {[%clk 0:00:37]} 27. Rg1 {[%clk 0:00:13]}  Qxf3+ {[%clk 0:00:36]} 28. Kd3 {[%clk 0:00:13]}  Qxf2 {[%clk 0:00:31]} 29. Rg8+ {[%clk 0:00:13]}  Kd7 {[%clk 0:00:29]} 30. Qb4 {[%clk 0:00:11]}  Qf1+ {[%clk 0:00:25]} 31. Kc3 {[%clk 0:00:11]}  Qe1+ {[%clk 0:00:20]} 32. Kd3 {[%clk 0:00:12]}  Qxb4 {[%clk 0:00:20]} 33. axb4 {[%clk 0:00:13]}  Rf2 {[%clk 0:00:19]} 34. Ra8 {[%clk 0:00:12]}  Ra2 {[%clk 0:00:18]} 35. h4 {[%clk 0:00:11]}  h5 {[%clk 0:00:18]} 36. Kc3 {[%clk 0:00:11]}  Nc1 {[%clk 0:00:18]} 37. b5 {[%clk 0:00:10]}  Nd3 {[%clk 0:00:19]} 38. b6 {[%clk 0:00:10]}  Rb2 {[%clk 0:00:14]} 39. Ra7+ {[%clk 0:00:09]}  Ke6 {[%clk 0:00:13]} 40. Rxa4 {[%clk 0:00:10]}  Rxb6 {[%clk 0:00:12]} 41. Kxd3 {[%clk 0:00:10]}  Rb3+ {[%clk 0:00:12]} 42. Ke2 {[%clk 0:00:10]}  Kf5 {[%clk 0:00:13]} 43. Kf3 {[%clk 0:00:10]}  Rb1 {[%clk 0:00:11]} 44. Ra7 {[%clk 0:00:09]}  f6 {[%clk 0:00:10]} 45. Re7 {[%clk 0:00:09]}  Rh1 {[%clk 0:00:10]} 46. Kg3 {[%clk 0:00:09]}  Rg1+ {[%clk 0:00:10]} 47. Kf3 {[%clk 0:00:09]}  Rf1+ {[%clk 0:00:09]} 48. Kg3 {[%clk 0:00:09]}  Re1 {[%clk 0:00:09]} 49. Kf3 {[%clk 0:00:09]}  Rc1 {[%clk 0:00:09]} 50. Rc7 {[%clk 0:00:08]}  Ke6 {[%clk 0:00:08]} 51. Rh7 {[%clk 0:00:08]}  Rc3 {[%clk 0:00:07]} 52. Rxh5 {[%clk 0:00:07]}  c5 {[%clk 0:00:07]} 53. dxc5 {[%clk 0:00:07]}  Rxc5 {[%clk 0:00:08]} 54. Kf4 {[%clk 0:00:07]}  Rc4+ {[%clk 0:00:08]} 55. Kf3 {[%clk 0:00:07]}  Rc3 {[%clk 0:00:08]} 56. Kf4 {[%clk 0:00:07]}  Rc4+ {[%clk 0:00:09]} 57. Kf3 {[%clk 0:00:07]}  Rc3 {[%clk 0:00:09]} 58. Rh8 {[%clk 0:00:07]}  d4 {[%clk 0:00:08]} 59. Re8+ {[%clk 0:00:07]}  Kf7 {[%clk 0:00:08]} 60. Re4 {[%clk 0:00:07]}  dxe3 {[%clk 0:00:06]} 61. Rxe3 {[%clk 0:00:07]}  Rxe3+ {[%clk 0:00:07]} 62. Kxe3 {[%clk 0:00:08]}  Kg6 {[%clk 0:00:07]} 63. Kf4 {[%clk 0:00:08]}  Kh5 {[%clk 0:00:08]} 64. Kf5 {[%clk 0:00:09]}  Kxh4 {[%clk 0:00:09]} 65. Kxf6 {[%clk 0:00:10]} 1/2-1/2


[Site "https://www.chess.com"]

[Event "Titled Tuesday Blitz July 6 2021"]
[White "Solon, Nathan"]
[Black "Golubev, Mikhail"]
[WhiteFideId "2017229"]
[BlackFideId "14100983"]
[WhiteElo "2635"]
[BlackElo "2374"]
[Result "1-0"]
[Round "11"]
[TimeControl "180+1"]
[Date "2021.07.06"]
[WhiteClock "0:00:16"]
[BlackClock "0:00:03"]

1. d4 {[%clk 0:03:00]}  d6 {[%clk 0:02:59]} 2. Nf3 {[%clk 0:03:00]}  Nf6 {[%clk 0:02:59]} 3. c4 {[%clk 0:02:59]}  g6 {[%clk 0:02:59]} 4. g3 {[%clk 0:02:59]}  Bg7 {[%clk 0:02:59]} 5. Bg2 {[%clk 0:02:59]}  O-O {[%clk 0:02:59]} 6. O-O {[%clk 0:03:00]}  Nbd7 {[%clk 0:02:59]} 7. Nc3 {[%clk 0:02:59]}  e5 {[%clk 0:02:59]} 8. e4 {[%clk 0:03:00]}  Re8 {[%clk 0:02:59]} 9. h3 {[%clk 0:02:59]}  b6 {[%clk 0:02:59]} 10. Re1 {[%clk 0:02:53]}  exd4 {[%clk 0:02:58]} 11. Nxd4 {[%clk 0:02:53]}  Bb7 {[%clk 0:02:59]} 12. Rb1 {[%clk 0:02:37]}  Nc5 {[%clk 0:02:56]} 13. f3 {[%clk 0:02:37]}  a5 {[%clk 0:02:32]} 14. Be3 {[%clk 0:02:34]}  Nfd7 {[%clk 0:02:20]} 15. b3 {[%clk 0:02:14]}  Ne5 {[%clk 0:02:10]} 16. Bf1 {[%clk 0:02:15]}  f5 {[%clk 0:01:59]} 17. Nd5 {[%clk 0:01:38]}  fxe4 {[%clk 0:01:55]} 18. f4 {[%clk 0:01:36]}  Ned3 {[%clk 0:01:50]} 19. Re2 {[%clk 0:01:28]}  c6 {[%clk 0:01:47]} 20. Nc3 {[%clk 0:01:28]}  d5 {[%clk 0:01:47]} 21. cxd5 {[%clk 0:01:27]}  cxd5 {[%clk 0:01:47]} 22. Rg2 {[%clk 0:01:18]}  Rc8 {[%clk 0:01:38]} 23. Ncb5 {[%clk 0:01:15]}  Ba6 {[%clk 0:01:30]} 24. g4 {[%clk 0:01:15]}  Bxb5 {[%clk 0:01:29]} 25. Nxb5 {[%clk 0:01:16]}  d4 {[%clk 0:01:28]} 26. Bc1 {[%clk 0:01:09]}  Qd7 {[%clk 0:01:24]} 27. a4 {[%clk 0:01:06]}  Nb4 {[%clk 0:01:15]} 28. Bc4+ {[%clk 0:01:04]}  Kh8 {[%clk 0:01:14]} 29. f5 {[%clk 0:00:50]}  gxf5 {[%clk 0:01:05]} 30. gxf5 {[%clk 0:00:50]}  Bf6 {[%clk 0:01:01]} 31. Qh5 {[%clk 0:00:39]}  d3 {[%clk 0:00:43]} 32. Bg5 {[%clk 0:00:38]}  Qd4+ {[%clk 0:00:38]} 33. Kh1 {[%clk 0:00:37]}  Qd8 {[%clk 0:00:36]} 34. Rbg1 {[%clk 0:00:26]}  e3 {[%clk 0:00:33]} 35. Qf7 {[%clk 0:00:20]}  Rf8 {[%clk 0:00:03]} 36. Bxf6+ {[%clk 0:00:16]}  Qxf6 {[%clk 0:00:03]} 37. Qxf6+ {[%clk 0:00:16]} 1-0


[Site "https://www.chess.com"]

[Event "Titled Tuesday Blitz July 6 2021"]
[White "Stojanovski, Sandi"]
[Black "Gracia Alvarez, Gerardo Antonio"]
[WhiteFideId "1403249"]
[BlackFideId "5109124"]
[WhiteElo "2360"]
[BlackElo "2148"]
[Result "0-1"]
[Round "11"]
[TimeControl "180+1"]
[Date "2021.07.06"]
[WhiteClock "0:00:02"]
[BlackClock "0:00:05"]

1. c4 {[%clk 0:03:00]}  c5 {[%clk 0:03:00]} 2. Nf3 {[%clk 0:03:00]}  g6 {[%clk 0:03:00]} 3. Nc3 {[%clk 0:02:59]}  Nc6 {[%clk 0:02:58]} 4. e3 {[%clk 0:02:46]}  Nf6 {[%clk 0:02:54]} 5. d4 {[%clk 0:02:46]}  cxd4 {[%clk 0:02:53]} 6. exd4 {[%clk 0:02:46]}  d5 {[%clk 0:02:54]} 7. cxd5 {[%clk 0:02:43]}  Nxd5 {[%clk 0:02:53]} 8. Bc4 {[%clk 0:02:42]}  Nxc3 {[%clk 0:02:52]} 9. Qb3 {[%clk 0:02:41]}  Nd5 {[%clk 0:02:53]} 10. Bxd5 {[%clk 0:02:41]}  e6 {[%clk 0:02:54]} 11. Bxc6+ {[%clk 0:02:40]}  bxc6 {[%clk 0:02:55]} 12. O-O {[%clk 0:02:14]}  Qd5 {[%clk 0:02:54]} 13. Qa4 {[%clk 0:01:49]}  f6 {[%clk 0:02:52]} 14. Be3 {[%clk 0:01:46]}  Kf7 {[%clk 0:02:37]} 15. Rac1 {[%clk 0:01:45]}  Bd7 {[%clk 0:02:37]} 16. Qa6 {[%clk 0:01:42]}  Be7 {[%clk 0:02:27]} 17. b3 {[%clk 0:01:33]}  Rhb8 {[%clk 0:02:25]} 18. Qd3 {[%clk 0:01:28]}  c5 {[%clk 0:01:59]} 19. Qe2 {[%clk 0:01:26]}  Bb5 {[%clk 0:01:56]} 20. Rc4 {[%clk 0:01:24]}  cxd4 {[%clk 0:01:44]} 21. Nxd4 {[%clk 0:01:24]}  Bxc4 {[%clk 0:01:43]} 22. bxc4 {[%clk 0:01:25]}  Qd7 {[%clk 0:01:36]} 23. Qg4 {[%clk 0:01:15]}  Rd8 {[%clk 0:01:24]} 24. h4 {[%clk 0:01:13]}  e5 {[%clk 0:01:23]} 25. Qxd7 {[%clk 0:01:03]}  Rxd7 {[%clk 0:01:24]} 26. Nb3 {[%clk 0:01:00]}  a5 {[%clk 0:01:17]} 27. Rc1 {[%clk 0:00:37]}  a4 {[%clk 0:01:16]} 28. Nd2 {[%clk 0:00:36]}  Bc5 {[%clk 0:00:58]} 29. Bh6 {[%clk 0:00:31]}  Bb4 {[%clk 0:00:50]} 30. Ne4 {[%clk 0:00:30]}  a3 {[%clk 0:00:45]} 31. Be3 {[%clk 0:00:29]}  Rc8 {[%clk 0:00:36]} 32. c5 {[%clk 0:00:26]}  Ke6 {[%clk 0:00:33]} 33. g4 {[%clk 0:00:25]}  f5 {[%clk 0:00:31]} 34. Ng5+ {[%clk 0:00:23]}  Kf6 {[%clk 0:00:29]} 35. gxf5 {[%clk 0:00:22]}  gxf5 {[%clk 0:00:28]} 36. Rc4 {[%clk 0:00:22]}  Bxc5 {[%clk 0:00:23]} 37. Rxc5 {[%clk 0:00:20]}  Rxc5 {[%clk 0:00:23]} 38. Bxc5 {[%clk 0:00:21]}  Rd1+ {[%clk 0:00:23]} 39. Kg2 {[%clk 0:00:21]}  Rd3 {[%clk 0:00:20]} 40. Nxh7+ {[%clk 0:00:20]}  Kf7 {[%clk 0:00:18]} 41. Ng5+ {[%clk 0:00:20]}  Kg6 {[%clk 0:00:17]} 42. Nf3 {[%clk 0:00:18]}  Rd5 {[%clk 0:00:17]} 43. Bxa3 {[%clk 0:00:18]}  e4 {[%clk 0:00:17]} 44. Ng5 {[%clk 0:00:17]}  Ra5 {[%clk 0:00:17]} 45. Be7 {[%clk 0:00:16]}  Rxa2 {[%clk 0:00:17]} 46. Kg3 {[%clk 0:00:14]}  Rb2 {[%clk 0:00:15]} 47. Nh3 {[%clk 0:00:13]}  Rb3+ {[%clk 0:00:15]} 48. Kg2 {[%clk 0:00:12]}  Kh5 {[%clk 0:00:14]} 49. Nf4+ {[%clk 0:00:11]}  Kg4 {[%clk 0:00:13]} 50. Bg5 {[%clk 0:00:10]}  Rf3 {[%clk 0:00:10]} 51. Nh3 {[%clk 0:00:10]}  Rxh3 {[%clk 0:00:10]} 52. Be3 {[%clk 0:00:09]}  Rxh4 {[%clk 0:00:10]} 53. Bd4 {[%clk 0:00:09]}  f4 {[%clk 0:00:08]} 54. Bc5 {[%clk 0:00:10]}  f3+ {[%clk 0:00:08]} 55. Kg1 {[%clk 0:00:10]}  Rh5 {[%clk 0:00:08]} 56. Be3 {[%clk 0:00:10]}  Rb5 {[%clk 0:00:09]} 57. Kh2 {[%clk 0:00:10]}  Rb1 {[%clk 0:00:09]} 58. Bd4 {[%clk 0:00:10]}  Rd1 {[%clk 0:00:09]} 59. Be3 {[%clk 0:00:10]}  Re1 {[%clk 0:00:09]} 60. Bd4 {[%clk 0:00:10]}  Re2 {[%clk 0:00:10]} 61. Bc5 {[%clk 0:00:10]}  Kf5 {[%clk 0:00:10]} 62. Kg3 {[%clk 0:00:09]}  Rc2 {[%clk 0:00:09]} 63. Bd4 {[%clk 0:00:09]}  Ke6 {[%clk 0:00:08]} 64. Kf4 {[%clk 0:00:08]}  Kd5 {[%clk 0:00:09]} 65. Be3 {[%clk 0:00:08]}  Rc4 {[%clk 0:00:09]} 66. Bd2 {[%clk 0:00:07]}  Rc8 {[%clk 0:00:08]} 67. Be3 {[%clk 0:00:06]}  Rf8+ {[%clk 0:00:08]} 68. Kg4 {[%clk 0:00:07]}  Kc4 {[%clk 0:00:08]} 69. Bb6 {[%clk 0:00:04]}  Kd3 {[%clk 0:00:08]} 70. Be3 {[%clk 0:00:04]}  Rg8+ {[%clk 0:00:05]} 71. Kf4 {[%clk 0:00:05]}  Rf8+ {[%clk 0:00:06]} 72. Kg4 {[%clk 0:00:05]}  Rb8 {[%clk 0:00:06]} 73. Kf4 {[%clk 0:00:06]}  Rb2 {[%clk 0:00:06]} 74. Bc5 {[%clk 0:00:06]}  Re2 {[%clk 0:00:06]} 75. Bb6 {[%clk 0:00:05]}  Kd2 {[%clk 0:00:05]} 76. Bc5 {[%clk 0:00:05]}  Ke1 {[%clk 0:00:06]} 77. Kg3 {[%clk 0:00:03]}  Kf1 {[%clk 0:00:06]} 78. Bb6 {[%clk 0:00:02]}  Rc2 {[%clk 0:00:05]} 0-1


[Site "https://www.chess.com"]

[Event "Titled Tuesday Blitz July 6 2021"]
[White "Todorovic, Bojan"]
[Black "Shtyka, Sergey"]
[WhiteFideId "917087"]
[BlackFideId "4138465"]
[WhiteElo "2266"]
[BlackElo "2064"]
[Result "0-1"]
[Round "11"]
[TimeControl "180+1"]
[Date "2021.07.06"]
[WhiteClock "0:00:01"]
[BlackClock "0:00:09"]

1. d4 {[%clk 0:02:59]}  c5 {[%clk 0:02:59]} 2. d5 {[%clk 0:02:58]}  e5 {[%clk 0:03:00]} 3. e4 {[%clk 0:02:57]}  d6 {[%clk 0:02:59]} 4. Nc3 {[%clk 0:02:56]}  Be7 {[%clk 0:02:59]} 5. Nf3 {[%clk 0:02:49]}  Bg4 {[%clk 0:02:58]} 6. a4 {[%clk 0:02:41]}  a6 {[%clk 0:02:51]} 7. a5 {[%clk 0:02:30]}  Nd7 {[%clk 0:02:46]} 8. Be2 {[%clk 0:02:23]}  Bxf3 {[%clk 0:02:45]} 9. Bxf3 {[%clk 0:02:23]}  Bg5 {[%clk 0:02:45]} 10. g3 {[%clk 0:02:17]}  Bxc1 {[%clk 0:02:43]} 11. Qxc1 {[%clk 0:02:16]}  Ngf6 {[%clk 0:02:43]} 12. h4 {[%clk 0:02:15]}  O-O {[%clk 0:02:43]} 13. Bg2 {[%clk 0:02:14]}  b5 {[%clk 0:02:20]} 14. axb6 {[%clk 0:02:13]}  Qxb6 {[%clk 0:02:20]} 15. O-O {[%clk 0:02:13]}  c4 {[%clk 0:02:14]} 16. Qd2 {[%clk 0:02:09]}  Nc5 {[%clk 0:01:44]} 17. Qe3 {[%clk 0:02:08]}  Qxb2 {[%clk 0:01:36]} 18. Ra2 {[%clk 0:02:00]}  Qb7 {[%clk 0:01:29]} 19. Rb1 {[%clk 0:01:59]}  Qc7 {[%clk 0:01:27]} 20. Qe2 {[%clk 0:01:55]}  Ncd7 {[%clk 0:01:19]} 21. Rb4 {[%clk 0:01:47]}  Rfc8 {[%clk 0:01:18]} 22. Bf1 {[%clk 0:01:41]}  Nb6 {[%clk 0:01:13]} 23. Na4 {[%clk 0:01:37]}  Nfd7 {[%clk 0:01:10]} 24. Nxb6 {[%clk 0:01:29]}  Nxb6 {[%clk 0:01:10]} 25. c3 {[%clk 0:01:27]}  Qc5 {[%clk 0:01:07]} 26. Qb2 {[%clk 0:01:18]}  Rcb8 {[%clk 0:01:04]} 27. Qa3 {[%clk 0:01:16]}  g6 {[%clk 0:01:00]} 28. Qa5 {[%clk 0:01:15]}  Nd7 {[%clk 0:00:47]} 29. Bxc4 {[%clk 0:01:02]}  Qxa5 {[%clk 0:00:41]} 30. Rxa5 {[%clk 0:01:01]}  Nc5 {[%clk 0:00:41]} 31. Rxb8+ {[%clk 0:00:54]}  Rxb8 {[%clk 0:00:40]} 32. Bxa6 {[%clk 0:00:53]}  Ra8 {[%clk 0:00:33]} 33. Rxc5 {[%clk 0:00:53]}  dxc5 {[%clk 0:00:33]} 34. Bb5 {[%clk 0:00:50]}  Rd8 {[%clk 0:00:30]} 35. Kf1 {[%clk 0:00:47]}  Kf8 {[%clk 0:00:30]} 36. Ke2 {[%clk 0:00:47]}  Ke7 {[%clk 0:00:31]} 37. Kd3 {[%clk 0:00:47]}  Kd6 {[%clk 0:00:31]} 38. g4 {[%clk 0:00:42]}  f6 {[%clk 0:00:31]} 39. g5 {[%clk 0:00:40]}  Rf8 {[%clk 0:00:28]} 40. Ke3 {[%clk 0:00:38]}  fxg5 {[%clk 0:00:22]} 41. hxg5 {[%clk 0:00:38]}  Rf4 {[%clk 0:00:22]} 42. Be2 {[%clk 0:00:30]}  Rh4 {[%clk 0:00:21]} 43. Bf3 {[%clk 0:00:22]}  Rh3 {[%clk 0:00:21]} 44. Ke2 {[%clk 0:00:20]}  Rh4 {[%clk 0:00:18]} 45. Ke3 {[%clk 0:00:19]}  Rf4 {[%clk 0:00:18]} 46. Ke2 {[%clk 0:00:19]}  Rf8 {[%clk 0:00:18]} 47. Ke3 {[%clk 0:00:18]}  Ra8 {[%clk 0:00:18]} 48. Bg4 {[%clk 0:00:18]}  Ra3 {[%clk 0:00:17]} 49. Kd3 {[%clk 0:00:17]}  Ra1 {[%clk 0:00:18]} 50. Be6 {[%clk 0:00:17]}  Rg1 {[%clk 0:00:18]} 51. Bg8 {[%clk 0:00:16]}  Rxg5 {[%clk 0:00:18]} 52. Bxh7 {[%clk 0:00:16]}  Rg2 {[%clk 0:00:17]} 53. Ke3 {[%clk 0:00:15]}  g5 {[%clk 0:00:16]} 54. Bf5 {[%clk 0:00:15]}  Rh2 {[%clk 0:00:16]} 55. Bg4 {[%clk 0:00:14]}  Rh4 {[%clk 0:00:16]} 56. Be2 {[%clk 0:00:13]}  Rh3+ {[%clk 0:00:16]} 57. Kd2 {[%clk 0:00:12]}  Rh2 {[%clk 0:00:14]} 58. Ke3 {[%clk 0:00:12]}  Rh8 {[%clk 0:00:14]} 59. Bg4 {[%clk 0:00:11]}  Rf8 {[%clk 0:00:14]} 60. Bf5 {[%clk 0:00:11]}  Ra8 {[%clk 0:00:10]} 61. Kd2 {[%clk 0:00:10]}  c4 {[%clk 0:00:10]} 62. Bg4 {[%clk 0:00:08]}  Kc5 {[%clk 0:00:10]} 63. Bf5 {[%clk 0:00:05]}  Ra2+ {[%clk 0:00:10]} 64. Ke3 {[%clk 0:00:03]}  Rc2 {[%clk 0:00:10]} 65. Kf3 {[%clk 0:00:03]}  Rxc3+ {[%clk 0:00:10]} 66. Kg4 {[%clk 0:00:03]}  Rc2 {[%clk 0:00:09]} 67. Kxg5 {[%clk 0:00:03]}  Rxf2 {[%clk 0:00:09]} 68. Kf6 {[%clk 0:00:01]}  Kd6 {[%clk 0:00:09]} 0-1


[Site "https://www.chess.com"]

[Event "Titled Tuesday Blitz July 6 2021"]
[White "Tomiello, Lucas Costamilan"]
[Black "Cunjalo, Faris"]
[WhiteFideId "22701940"]
[BlackFideId "14410710"]
[WhiteElo "1945"]
[BlackElo "2234"]
[Result "0-1"]
[Round "11"]
[TimeControl "180+1"]
[Date "2021.07.06"]
[WhiteClock "0:00:13"]
[BlackClock "0:00:06"]

1. e4 {[%clk 0:03:00]}  c6 {[%clk 0:03:00]} 2. d4 {[%clk 0:03:00]}  d5 {[%clk 0:03:00]} 3. Nd2 {[%clk 0:03:01]}  dxe4 {[%clk 0:03:00]} 4. Nxe4 {[%clk 0:03:02]}  Bf5 {[%clk 0:03:01]} 5. Ng3 {[%clk 0:03:02]}  Bg6 {[%clk 0:03:01]} 6. h4 {[%clk 0:03:03]}  h6 {[%clk 0:03:01]} 7. Nf3 {[%clk 0:03:03]}  e6 {[%clk 0:03:01]} 8. h5 {[%clk 0:03:04]}  Bh7 {[%clk 0:03:02]} 9. Bd3 {[%clk 0:03:05]}  Bxd3 {[%clk 0:03:02]} 10. Qxd3 {[%clk 0:03:06]}  Nf6 {[%clk 0:03:03]} 11. Bd2 {[%clk 0:03:05]}  Be7 {[%clk 0:03:03]} 12. O-O-O {[%clk 0:03:04]}  Nbd7 {[%clk 0:03:03]} 13. Kb1 {[%clk 0:03:03]}  Qc7 {[%clk 0:03:02]} 14. Qe2 {[%clk 0:03:01]}  O-O-O {[%clk 0:03:00]} 15. Ne5 {[%clk 0:03:01]}  Nxe5 {[%clk 0:02:59]} 16. dxe5 {[%clk 0:03:02]}  Nd5 {[%clk 0:02:58]} 17. a3 {[%clk 0:02:54]}  Qb6 {[%clk 0:02:58]} 18. Ka2 {[%clk 0:02:51]}  Bc5 {[%clk 0:02:48]} 19. c4 {[%clk 0:02:44]}  Nc7 {[%clk 0:02:35]} 20. Ne4 {[%clk 0:02:37]}  Bd4 {[%clk 0:02:29]} 21. Bf4 {[%clk 0:02:34]}  Ne8 {[%clk 0:02:12]} 22. Rh3 {[%clk 0:02:05]}  c5 {[%clk 0:01:57]} 23. Rb3 {[%clk 0:01:51]}  Qc6 {[%clk 0:01:53]} 24. Rbd3 {[%clk 0:01:47]}  f5 {[%clk 0:01:48]} 25. Nd2 {[%clk 0:01:22]}  Nc7 {[%clk 0:01:23]} 26. Nb3 {[%clk 0:01:19]}  Na6 {[%clk 0:01:22]} 27. Nxd4 {[%clk 0:01:15]}  cxd4 {[%clk 0:01:22]} 28. Rxd4 {[%clk 0:01:13]}  Rxd4 {[%clk 0:01:19]} 29. Rxd4 {[%clk 0:01:14]}  Qa4 {[%clk 0:01:19]} 30. b3 {[%clk 0:01:11]}  Qc6 {[%clk 0:01:17]} 31. Rd6 {[%clk 0:01:06]}  Qxg2 {[%clk 0:01:11]} 32. Rxe6 {[%clk 0:01:06]}  Rd8 {[%clk 0:01:11]} 33. Rd6 {[%clk 0:01:06]}  Nc5 {[%clk 0:01:01]} 34. Rxd8+ {[%clk 0:01:05]}  Kxd8 {[%clk 0:01:01]} 35. e6 {[%clk 0:00:56]}  Qe4 {[%clk 0:00:55]} 36. Qd2+ {[%clk 0:00:41]}  Ke8 {[%clk 0:00:43]} 37. Be3 {[%clk 0:00:33]}  Nxe6 {[%clk 0:00:38]} 38. Bxa7 {[%clk 0:00:33]}  Nf4 {[%clk 0:00:30]} 39. Bb6 {[%clk 0:00:19]}  Ne2 {[%clk 0:00:20]} 40. a4 {[%clk 0:00:16]}  Qe5 {[%clk 0:00:10]} 41. a5 {[%clk 0:00:10]}  Nc3+ {[%clk 0:00:10]} 42. Ka3 {[%clk 0:00:09]}  Nb1+ {[%clk 0:00:10]} 43. Kb4 {[%clk 0:00:09]}  Nxd2 {[%clk 0:00:10]} 44. Be3 {[%clk 0:00:08]}  Ne4 {[%clk 0:00:09]} 45. a6 {[%clk 0:00:07]}  Qc3+ {[%clk 0:00:08]} 46. Ka4 {[%clk 0:00:08]}  Qa1+ {[%clk 0:00:07]} 47. Kb5 {[%clk 0:00:08]}  Qxa6+ {[%clk 0:00:07]} 48. Kb4 {[%clk 0:00:08]}  b6 {[%clk 0:00:07]} 49. c5 {[%clk 0:00:08]}  bxc5+ {[%clk 0:00:05]} 50. Bxc5 {[%clk 0:00:07]}  Nxc5 {[%clk 0:00:05]} 51. Kxc5 {[%clk 0:00:08]}  Qe2 {[%clk 0:00:05]} 52. b4 {[%clk 0:00:09]}  Qxf2+ {[%clk 0:00:05]} 53. Kd5 {[%clk 0:00:10]}  f4 {[%clk 0:00:05]} 54. b5 {[%clk 0:00:10]}  f3 {[%clk 0:00:06]} 55. Kc6 {[%clk 0:00:11]}  Qc2+ {[%clk 0:00:05]} 56. Kd5 {[%clk 0:00:11]}  f2 {[%clk 0:00:05]} 57. b6 {[%clk 0:00:12]}  Qb3+ {[%clk 0:00:06]} 58. Kc6 {[%clk 0:00:12]}  Qxb6+ {[%clk 0:00:06]} 59. Kxb6 {[%clk 0:00:13]}  f1=Q {[%clk 0:00:06]} 0-1


[Site "https://www.chess.com"]